[Event "45th FIDE Olympiad 2024"]
[Site "Budapest"]
[Date "2024.09.11"]
[Round "1.56"]
[White "Sanchez, Steven"]
[Black "Lagarde, Maxime"]
[Result "0-1"]
[ECO "A46"]
[WhiteElo "2072"]
[BlackElo "2598"]
[Annotator "TA"]
[PlyCount "106"]
[EventDate "2024.09.05"]
[EventType "team-tourn"]
[EventCountry "HUN"]
[SourceTitle "playchess.com"]
[Source "ChessBase"]
[SourceQuality "1"]
[WhiteTeam "Nicaragua"]
[BlackTeam "France"]
[WhiteTeamCountry "NCA"]
[BlackTeamCountry "FRA"]
[TimeControl "40/5400+30:1800+30"]

{[%evp 9,106,0,0,0,0,0,0,5,13,-14,-20,-11,-5,-29,-23,-32,-18,-18,-23,-10,-11,-15,-17,-25,0,0,0,0,-9,-15,-21,-81,-96,-89,-15,-161,-73,-164,-164,-219,-155,-167,-188,-194,-176,-205,-148,-145,-145,-263,-194,-202,-207,-195,-185,-196,-199,-190,-182,-5196,-5181,-29968,-29969,-29968,-29969,-6295,-679,-662,-662,-633,-404,-29978,-29979,-29975,-12798,-5210,-864,-1065,-784,-612,-148,-601,-604,-29989,-29990,-29990,-29990,-29991,-29991,-29991,-29992,-29995,-29989,-29989,-29990,-29993,-29994,-29994,-29995]} 1. d4 {[%emt 0:00:09]} Nf6 {[%emt 0:00:04]} 2. Bf4 {[%emt 0:00:29]} d6 {[%emt 0:00:05]} 3. Nf3 {[%emt 0:01:45]} Nbd7 {[%emt 0:00:25]} 4. Nc3 {[%emt 0:02:20]} c5 {[%emt 0:00:16]} 5. e3 {[%emt 0:02:46]} a6 {[%emt 0:00:04]} 6. a4 {[%emt 0:04:10]} d5 {[%emt 0:00:04]} 7. Ne5 {[%emt 0:07:59]} e6 {[%emt 0:01:58]} 8. Be2 {[%emt 0:11:00] The position is equal.} Qb6 {[%emt 0:10:54]} 9. Ra2 {[%emt 0:08:34]} Bd6 {[%emt 0:07:35]} 10. a5 {[%emt 0:09:42]} Qc7 {[%emt 0:00:11][%cal Rd7e5]} 11. Bb5 {[%emt 0:06:11]} O-O {[%emt 0:09:46] And now ...cxd4 would win.} (11... axb5 $2 12. Nxb5 Nb8 13. Nxc7+ $18) 12. Bxd7 {[%emt 0:03:54]} Nxd7 {[%emt 0:02:09]} 13. Nxd7 {[%emt 0:00:12]} Bxd7 {[%emt 0:00:26]} 14. Bxd6 {[%emt 0:00:14]} Qxd6 {[%emt 0:00:03]} 15. O-O {[%emt 0:00:26]} Qc7 {[%emt 0:11:18]} 16. f4 {[%emt 0:05:57]} f5 {[%emt 0:04:45]} 17. Rf2 {[%emt 0:05:14]} Rfc8 {[%emt 0:11:16]} 18. h3 {[%emt 0:06:08]} b6 {[%emt 0:03:17]} 19. g4 {[%emt 0:00:58]} fxg4 {[%emt 0:04:56]} 20. Qxg4 {[%emt 0:00:19]} (20. axb6 $11 Qxb6 21. dxc5 (21. hxg4 a5 $11) 21... Qxc5 22. Qxg4) 20... cxd4 {[%emt 0:03:07]} 21. exd4 {[%emt 0:00:15]} Rf8 {[%emt 0:02:26]} ({Better is} 21... b5 $17 22. Ra1 (22. Rg2 g6 $17) 22... Rf8) 22. f5 {[%emt 0:08:57]} exf5 {[%emt 0:04:02]} (22... Rxf5 $19 23. axb6 Qxb6 24. Rxf5 exf5 25. Nxd5 Qd6 (25... fxg4 26. Nxb6 Rd8 27. c4 $14)) 23. Qf3 {[%emt 0:02:41]} (23. Qf4 $17 {is the only way for White.} Qxf4 24. Rxf4) 23... Rae8 $19 {[%emt 0:03:49]} (23... bxa5 24. Nxd5 Qd8 25. Nf4 $17) 24. axb6 {[%emt 0:01:44]} (24. Ra1 {keeps fighting.}) 24... Qxb6 {[%emt 0:02:02]} 25. Nxd5 {[%emt 0:02:30]} Re1+ {[%emt 0:07:11]} 26. Kh2 {[%emt 0:04:26]} Qxd4 {[%emt 0:01:26]} 27. Rxa6 {[%emt 0:02:16]} Kh8 {[%emt 0:03:28] Strongly threatening ...Qe5+.} (27... Qxb2 28. c4 Qb8+ 29. Qf4 $17) 28. Rd6 {[%emt 0:00:19]} Be6 {[%emt 0:01:05] Hoping for ...Qe5+. Black is more active.} 29. Qf4 {[%emt 0:01:41]} (29. c4 $17) 29... Re4 {[%emt 0:01:07]} 30. Qd2 {[%emt 0:01:04]} Qe5+ {[%emt 0:00:13]} (30... Qxb2 31. Nc3 Re5 32. Ne2) 31. Nf4 {[%emt 0:00:06] [#]} Bg8 {[%emt 0:00:35][%cal Og7g5] ...g5! is the strong threat.} 32. Kg2 {[%emt 0:00:32]} Qxb2 {[%emt 0:00:43]} 33. Rd3 {[%emt 0:00:56]} Rc8 {[%emt 0:01:21]} 34. Qd1 $2 {[%emt 0:00:05] [#]} (34. Rd8 Rxd8 35. Qxd8) 34... Rxf4 $1 {[%emt 0:01:45][%mdl 512]} 35. Rxf4 {[%emt 0:00:22]} (35. Rdf3 Rd4) 35... Rxc2+ {[%emt 0:00:05]} 36. Kf3 {[%emt 0:00:52]} Qb7+ {[%emt 0:02:05]} 37. Ke3 {[%emt 0:00:21]} Qe7+ {[%emt 0:00:23]} (37... Qa7+ $142 38. Rdd4 Qe7+ 39. Kf3 Qa3+ (39... Qb7+ $2 40. Ke3 $19) 40. Qd3 Rc3) 38. Kf3 {[%emt 0:00:35]} Qc5 {[%emt 0:00:47][%csl Gc2][%cal Rc5f2]} 39. Kg3 {[%emt 0:00:49][%cal Of4f5]} Qc7 {[%emt 0:01:26] ...Qc6 would now be deadly.} 40. Kf3 {[%emt 0:00:20]} (40. h4 $19 h6 41. Rd6) 40... Qc6+ {[%emt 0:00:11]} 41. Ke3 {[%emt 0:30:07]} Qe8+ {[%emt 0:30:43]} (41... Qc5+ $142 42. Rdd4 g5 43. Qxc2 Qxc2 44. Rxf5 Qxf5 45. Rg4 h5 46. Re4 Qxh3+ 47. Kd2 h4 48. Re7 Qg2+ 49. Re2 h3 50. Ke3 Qg3+ 51. Kd2 h2 52. Rxh2+ Qxh2+ 53. Ke3 Qd6 54. Ke2 Bc4+ 55. Kf3 Qf4+ 56. Kg2 Bd5+ 57. Kg1 Qg3+ 58. Kf1 Bc4#) 42. Kf3 {[%emt 0:00:40]} Qh5+ {[%emt 0:00:00]} (42... Qa8+ $142 43. Ke3 Qa7+ 44. Rdd4 Qa3+ 45. Qd3 Qc1+ (45... Rc3 $2 46. Rxf5 Qc1+ 47. Kf2 $19) 46. Qd2 Rxd2 47. Rxd2 Qe1+ 48. Re2 Qg3+ 49. Rf3 f4+ 50. Ke4 Bd5+ 51. Kxd5 Qxf3+ 52. Re4 Qd3+ (52... Qxh3 53. Re8#) 53. Rd4 Qf5+ (53... Qxh3 54. Rxf4 g5 55. Re4 $19) 54. Kc6 g5 (54... Qxh3 55. Rd8#) 55. Rd8+ Kg7 56. h4 gxh4 57. Rb8 f3 58. Rb7+ Kg6 59. Rd7 Qxd7+ (59... f2 60. Rd6+ Kf7 61. Rd7+ Ke8 62. Rg7 f1=Q 63. Rg8+ Kf7 64. Rf8+ Kxf8 65. Kb7 Qd7+ 66. Kb8 Qd6+ 67. Kc8 Qfa6#) 60. Kxd7 f2 61. Ke7 h3 (61... f1=B 62. Ke6 Kg5 63. Ke5 h3 64. Kd6 h2 65. Kc6 h1=Q+ 66. Kd6 Qe4 67. Kc5 Kf6 68. Kd6 Qb4+ 69. Kc7 Ba6 70. Kc6 Ke6 71. Kc7 Qd6#) 62. Kf8 f1=Q+ (62... f1=B 63. Ke7 h2 64. Ke6 h1=Q 65. Kd6 Qh2+ 66. Kd5 Qc2 67. Ke5 Qc3+ 68. Ke6 Bb5 69. Kd5 Kf5 70. Kd6 Qe5#) 63. Ke7 Qf6+ (63... h2 64. Ke6 h1=Q 65. Kd6 Qf6+ 66. Kc5 Qhc6+ 67. Kb4 Qfc3#) 64. Kd7 h2 65. Kc8 h1=Q (65... h1=B 66. Kd7 Qc6+ 67. Kd8 Qb7 68. Ke8 Qc7 69. Kf8 Qf7#) 66. Kc7 Qfc6+ 67. Kd8 Qh4#) 43. Kg3 {[%emt 0:00:00]} Qg5+ {[%emt 0:00:00]} 44. Rg4 {[%emt 0:00:00]} f4+ $40 {[%emt 0:00:00][%mdl 128] Black is out for blood.} ({Not} 44... fxg4 45. Qxc2 h5 46. Qd2 Qe5+ 47. Kg2 $15) 45. Kf3 {[%emt 0:00:00]} Qc5 {[%emt 0:00:00][%cal Og8d5] ( -> ...Bd5+!)} 46. Qg1 {[%emt 0:00:00]} Bd5+ {[%emt 0:00:00] Black mates.} 47. Rxd5 {[%emt 0:00:00]} Qxd5+ {[%emt 0:00:00]} 48. Kxf4 {[%emt 0:00:00] [#] KQR-KQR} g5+ $1 {[%emt 0:00:00][%mdl 512]} 49. Rxg5 {[%emt 0:00:00]} Rc4+ {[%emt 0:00:00]} 50. Ke3 {[%emt 0:00:00]} Qe4+ {[%emt 0:00:00]} 51. Kf2 {[%emt 0:00:00]} Qf4+ {[%emt 0:00:00]} 52. Ke2 {[%emt 0:00:00]} Re4+ {[%emt 0:00:00]} 53. Kd1 {[%emt 0:00:00]} Qf3+ {[%emt 0:00:00] Weighted Error Value: White=0.79/Black=0.68.  Mistake:       	White=6     	Black=2      Inaccurate:     	White=3     	---        OK:         	White=9     	Black=12     Best:        	White=2     	Black=1      Brilliant:      	---       	Black=1} 0-1

[Event "45th FIDE Olympiad 2024"]
[Site "Budapest"]
[Date "2024.09.11"]
[Round "1.57"]
[White "Barbaria, Yacine"]
[Black "Volokitin, Andrei"]
[Result "0-1"]
[ECO "B23"]
[WhiteElo "2179"]
[BlackElo "2660"]
[Annotator "TA"]
[PlyCount "84"]
[EventDate "2024.09.05"]
[EventType "team-tourn"]
[EventCountry "HUN"]
[SourceTitle "playchess.com"]
[Source "ChessBase"]
[SourceQuality "1"]
[WhiteTeam "Tunisia"]
[BlackTeam "Ukraine"]
[WhiteTeamCountry "TUN"]
[BlackTeamCountry "UKR"]
[TimeControl "40/5400+30:1800+30"]

{[%evp 12,84,-13,-15,-13,0,0,-20,-21,-34,-35,-46,-36,-45,-37,-36,-38,-48,-60,-63,-50,-56,-53,-55,22,-59,-11,-11,-2,-7,0,-8,-14,0,0,0,0,-58,-45,-49,-51,-71,-65,-59,-67,-62,-32,-36,-29,-29,-8,-8,0,-2,-7,-6,-8,-116,-77,-77,-78,-75,-63,-72,64,-136,-143,-226,-163,-612,-513,-1295,-1289,-29955,-4137]} 1. e4 {[%emt 0:00:05]} c5 {[%emt 0:00:07]} 2. Nc3 {[%emt 0:00:20]} e6 {[%emt 0:00:18]} 3. f4 {[%emt 0:00:35]} d5 {[%emt 0:01:09]} 4. Bb5+ {[%emt 0:01:50]} Bd7 {[%emt 0:00:14]} 5. Bxd7+ {[%emt 0:00:17]} Qxd7 {[%emt 0:00:08]} 6. d3 {[%emt 0:02:29]} Nc6 {[%emt 0:10:26]} 7. Nf3 {[%emt 0:03:37]} g6 {[%emt 0:03:00]} 8. O-O {[%emt 0:02:53]} Nge7 {[%emt 0:02:26]} 9. Qe1 {[%emt 0:10:41]} Bg7 {[%emt 0:00:46] The position is equal.} 10. Bd2 {[%emt 0:09:59]} Nd4 {[%emt 0:16:06]} 11. Rc1 {[%emt 0:05:43]} O-O {[%emt 0:06:32]} 12. Ne5 {[%emt 0:09:36]} Qd6 {[%emt 0:03:13]} 13. Ne2 {[%emt 0:05:56]} dxe4 {[%emt 0:17:46]} 14. Nxd4 {[%emt 0:05:13]} Qxd4+ {[%emt 0:07:13]} 15. Be3 {[%emt 0:00:39]} Qxb2 {[%emt 0:15:16] And now ...Nd5 would win.} 16. Bxc5 {[%emt 0:00:33]} Rfe8 {[%emt 0:00:23]} 17. Qxe4 {[%emt 0:01:08]} Nd5 {[%emt 0:00:35]} (17... Qxa2 $15 18. Qxb7 Qd5 19. Qxd5 Nxd5) 18. c4 {[%emt 0:02:08]} (18. Bd4 $1 $11 Nc3 (18... Qxa2 19. c4 $14) 19. Bxc3 Qxc3 20. Qxb7) 18... f5 {[%emt 0:03:22]} (18... Nc3 $15 {was preferrable.} 19. Rxc3 Qxc3 20. Qxb7 f6 (20... Bxe5 21. fxe5 Rf8 22. Qe4 $14)) 19. Qd4 $1 $11 {[%emt 0:06:29]} Qxd4+ {[%emt 0:00:28]} 20. Bxd4 {[%emt 0:00:04]} Nb4 {[%emt 0:00:27]} 21. Rb1 $132 {[%emt 0:04:11][%mdl 2048] White is fighting back} a5 {[%emt 0:02:08][%cal Oe8d8]} 22. a3 {[%emt 0:04:37]} Nxd3 {[%emt 0:00:31]} 23. Rxb7 {[%emt 0:00:14]} Red8 {[%emt 0:01:57]} 24. Bb6 {[%emt 0:02:33]} (24. Bc3 $11 Bf6 25. g3) 24... Rdb8 $15 {[%emt 0:02:58]} 25. Rxb8+ {[%emt 0:03:30]} Rxb8 {[%emt 0:00:01]} 26. c5 {[%emt 0:04:29]} Nxe5 {[%emt 0:01:06]} 27. fxe5 {[%emt 0:00:05]} Bxe5 $17 {[%emt 0:00:03][%mdl 4096] Endgame. KRB-KRB} 28. Rd1 {[%emt 0:01:55] Dodges Bd4+} Rc8 {[%emt 0:03:05]} (28... a4 $5) 29. a4 {[%emt 0:02:04][%cal Og1f1]} Bc3 {[%emt 0:01:18]} 30. Kf2 {[%emt 0:03:52]} e5 {[%emt 0:00:29] White should prevent ...Bd4+.} 31. Ke3 {[%emt 0:01:19]} Kf7 {[%emt 0:01:06]} 32. Kd3 {[%emt 0:01:12]} Bb4 {[%emt 0:01:13]} 33. Kc4 {[%emt 0:01:42]} e4 $1 {[%emt 0:00:09]} 34. Rc1 {[%emt 0:04:48]} (34. Rd7+ $11 {remains equal.} Ke6 35. Rd6+ Ke5 36. Rd7) 34... Ke6 {[%emt 0:00:21]} 35. Rc2 {[%emt 0:00:11] Wards off Bd2} Ke5 {[%emt 0:01:04]} 36. Kb5 {[%emt 0:00:56][%cal Oc5c6] Repels Rc6} e3 {[%emt 0:00:22] [#] Hoping for ...Ke4.} 37. c6 $1 {[%emt 0:00:26]} Bd2 {[%emt 0:00:41]} (37... f4 $17) 38. Bxa5 $2 {[%emt 0:00:35]} (38. Ka6 $14 {keeps the upper hand.}) 38... Bxa5 {[%emt 0:00:28]} 39. Kxa5 {[%emt 0:00:04] Black must now prevent Kb6.} Kd6 {[%emt 0:00:32]} 40. Kb6 {[%emt 0:00:16]} (40. Kb5) 40... Rb8+ $19 {[%emt 0:00:07]} 41. Ka7 {[%emt 0:30:11] [#]} (41. Ka5 $142 Kc7 42. Re2) 41... Kc7 $1 {[%emt 0:30:23]} 42. g3 {[%emt 0:01:10]} g5 {[%emt 0:00:32] Weighted Error Value: White=0.71/Black=0.17 (very precise) .  Mistake:       	White=6     	Black=3      Inaccurate:     	White=2     	Black=2      OK:         	White=9     	Black=14     Best:        	White=4     	Black=1      Strong:       	White=2     	Black=1} 0-1

[Event "45th FIDE Olympiad 2024"]
[Site "Budapest"]
[Date "2024.09.11"]
[Round "1.57"]
[White "Enemchukwu, Chinedu Benjamin"]
[Black "Barrish, Daniel"]
[Result "1/2-1/2"]
[ECO "D00"]
[WhiteElo "2001"]
[BlackElo "2281"]
[Annotator "ChessBase"]
[PlyCount "127"]
[EventDate "2024.09.05"]
[EventType "team-tourn"]
[EventCountry "HUN"]
[SourceTitle "playchess.com"]
[Source "ChessBase"]
[SourceQuality "1"]
[WhiteTeam "Saint Vincent and the Grenadines"]
[BlackTeam "South Africa"]
[BlackTeamCountry "RSA"]
[TimeControl "40/5400+30:1800+30"]

1. e4 c6 2. d4 d5 3. Nc3 dxe4 4. f3 exf3 5. Nxf3 Nf6 6. Bc4 Bf5 7. O-O e6 8. Ne5 Bg6 9. Nxg6 hxg6 10. h3 Nbd7 11. a4 Bd6 12. Be3 O-O 13. Qe1 Nd5 14. Nxd5 exd5 15. Bd3 Bc7 16. Qf2 Nf6 17. Qh4 Ne4 18. Qxd8 Raxd8 19. Bxe4 dxe4 20. c3 f5 21. Rae1 f4 22. Bc1 Rde8 23. g3 fxg3 24. Rxf8+ Kxf8 25. Kg2 Re7 26. Bg5 Rf7 27. Re2 Rf5 28. Bd2 b5 29. axb5 Rxb5 30. Bc1 Rf5 31. Bd2 a5 32. Be1 Rb5 33. b4 axb4 34. cxb4 Kf7 35. Rxe4 Bd6 36. Re3 g5 37. Bxg3 Bxb4 38. Kf3 Ra5 39. Re5 Ra3+ 40. Re3 Ra4 41. Kg4 c5 42. Re4 Bc3 43. Kxg5 Rxd4 44. Rxd4 Bxd4 45. Kf5 g6+ 46. Ke4 Ke6 47. Bf4 Bf6 48. Be3 Kd6 49. Bf2 Kc6 50. h4 c4 51. Be1 Kd6 52. Bb4+ Ke6 53. Be1 c3 54. h5 g5 55. h6 Be5 56. h7 c2 57. Bd2 g4 58. Kd3 Kf7 59. Kxc2 Kg7 60. Kd3 Kxh7 61. Ke4 Bd6 62. Bf4 Bxf4 63. Kxf4 Kg6 64. Kxg4 1/2-1/2

[Event "45th FIDE Olympiad 2024"]
[Site "Budapest"]
[Date "2024.09.11"]
[Round "1.58"]
[White "Karsten, Jan"]
[Black "Cottle, Brian S"]
[Result "1-0"]
[ECO "B04"]
[WhiteElo "2311"]
[BlackElo "1804"]
[Annotator "ChessBase"]
[PlyCount "81"]
[EventDate "2024.09.05"]
[EventType "team-tourn"]
[EventCountry "HUN"]
[SourceTitle "playchess.com"]
[Source "ChessBase"]
[SourceQuality "1"]
[WhiteTeam "South Africa"]
[BlackTeam "Saint Vincent and the Grenadines"]
[WhiteTeamCountry "RSA"]
[TimeControl "40/5400+30:1800+30"]

1. e4 Nf6 2. e5 Nd5 3. d4 d6 4. Nf3 g6 5. Bc4 Nb6 6. Bb3 Bg7 7. Ng5 d5 8. f4 Nc6 9. c3 h6 10. Nf3 Bg4 11. h3 Bf5 12. Qe2 Qd7 13. a4 Na5 14. Bc2 Bxc2 15. Qxc2 O-O 16. b3 Rac8 17. Ba3 Rfe8 18. g4 e6 19. h4 Bf8 20. h5 Bxa3 21. Nxa3 Kg7 22. g5 Rh8 23. hxg6 hxg5 24. O-O-O Qe7 25. Kb2 g4 26. gxf7 Qxf7 27. Ng5 Qf5 28. Nxe6+ Qxe6 29. f5 Qe8 30. f6+ Kf7 31. Rh7+ Rxh7 32. Qxh7+ Ke6 33. Rf1 Nc6 34. Qf5+ Kf7 35. Qh5+ Kf8 36. Qh6+ Kf7 37. Qg7+ Ke6 38. Qxg4+ Kf7 39. e6+ Qxe6 40. Qg7+ Ke8 41. f7+ 1-0

[Event "45th FIDE Olympiad 2024"]
[Site "Budapest"]
[Date "2024.09.11"]
[Round "1.59"]
[White "Meftahi, Houssem"]
[Black "Korobov, Anton"]
[Result "0-1"]
[ECO "B95"]
[WhiteElo "2112"]
[BlackElo "2650"]
[Annotator "TA"]
[PlyCount "50"]
[EventDate "2024.09.05"]
[EventType "team-tourn"]
[EventCountry "HUN"]
[SourceTitle "playchess.com"]
[Source "ChessBase"]
[SourceQuality "1"]
[WhiteTeam "Tunisia"]
[BlackTeam "Ukraine"]
[WhiteTeamCountry "TUN"]
[BlackTeamCountry "UKR"]
[TimeControl "40/5400+30:1800+30"]

{[%evp 15,50,-10,0,-26,-24,-43,-27,-81,-68,-67,-61,-108,-87,-127,-105,-189,-154,-233,-250,-263,-237,-244,-263,-261,-268,-258,-244,-252,-263,-596,-592,-1185,-628,-662,-643,-881,-860]} 1. e4 {[%emt 0:00:03]} c5 {[%emt 0:00:06]} 2. Nf3 {[%emt 0:00:24]} d6 {[%emt 0:00:08]} 3. d4 {[%emt 0:00:11]} cxd4 {[%emt 0:00:06]} 4. Nxd4 {[%emt 0:00:04]} Nf6 {[%emt 0:00:08]} 5. Nc3 {[%emt 0:00:05]} a6 {[%emt 0:00:07]} 6. Bc4 {[%emt 0:00:11]} e6 {[%emt 0:00:15]} 7. Bb3 {[%emt 0:00:03]} Be7 {[%emt 0:00:18]} 8. Bg5 {[%emt 0:01:37]} O-O {[%emt 0:01:26]} 9. f4 {[%emt 0:00:09]} (9. O-O $5) 9... b5 {[%emt 0:02:10]} 10. Qf3 {[%emt 0:10:41]} Bb7 {[%emt 0:10:01] With the idea ...b4.} 11. O-O-O {[%emt 0:14:49]} (11. Bxe6 $11 fxe6 12. Nxe6) 11... b4 $17 {[%emt 0:03:52]} 12. Bxf6 $1 {[%emt 0:01:37]} Bxf6 {[%emt 0:04:12]} 13. Nce2 {[%emt 0:06:53]} (13. Na4 $15 {should be considered.}) 13... a5 {[%emt 0:10:00]} 14. Ba4 {[%emt 0:25:43]} Na6 {[%emt 0:10:58]} 15. g4 {[%emt 0:08:35]} (15. Nb3 $17) 15... Rc8 {[%emt 0:06:21] ...Nc5 would now be deadly.} 16. Bb5 {[%emt 0:00:53]} ({Don't blunder} 16. g5 $2 Bxd4 17. Rxd4 Nc5 $19) (16. Nb3 $17) 16... Nc5 $19 {[%emt 0:00:50]} 17. Bd3 {[%emt 0:03:27]} e5 {[%emt 0:06:08]} 18. g5 {[%emt 0:02:33] [#]} Bxg5 {[%emt 0:01:29]} ({Resist} 18... exd4 19. gxf6 Qxf6 20. Rhg1) 19. fxg5 {[%emt 0:00:03]} Qxg5+ {[%emt 0:00:20]} ({But not} 19... exd4 20. Rhg1 $19) 20. Kb1 {[%emt 0:00:02]} exd4 {[%emt 0:00:16]} 21. Nxd4 {[%emt 0:05:12]} Qe5 {[%emt 0:00:59][%csl LRd4,LRe4]} 22. Nf5 {[%emt 0:06:54]} (22. Qe3) 22... Na4 {[%emt 0:00:41][%csl Ga4][%cal Re5b2] Black is clearly winning.} 23. c3 {[%emt 0:02:11] [#]} Nxb2 $1 {[%emt 0:04:26][%mdl 512]} 24. Kxb2 {[%emt 0:05:16]} Rxc3 {[%emt 0:00:30][%cal Oc3b3] ( -> ...Rb3+!)} 25. Kb1 {[%emt 0:00:13] [#]} Rxd3 $1 {[%emt 0:00:19][%mdl 512] Black took control after the opening.   Weighted Error Value: White=1.11/Black=0.32.  Mistake:       	White=5     	---        Inaccurate:     	White=2     	Black=1      OK:         	White=2     	Black=8      Strong:       	White=1     	---} 0-1

[Event "45th FIDE Olympiad 2024"]
[Site "Budapest"]
[Date "2024.09.11"]
[Round "1.59"]
[White "Schneider, James U"]
[Black "Levitan, Caleb Levi"]
[Result "0-1"]
[ECO "B45"]
[WhiteElo "1486"]
[BlackElo "2193"]
[Annotator "NA RC"]
[PlyCount "38"]
[EventDate "2024.09.05"]
[EventType "team-tourn"]
[EventCountry "HUN"]
[SourceTitle "playchess.com"]
[Source "ChessBase"]
[SourceQuality "1"]
[WhiteTeam "Saint Vincent and the Grenadines"]
[BlackTeam "South Africa"]
[BlackTeamCountry "RSA"]
[TimeControl "40/5400+30:1800+30"]

1. e4 c5 2. Nc3 e6 3. Nf3 Nc6 4. d4 cxd4 5. Nxd4 Nf6 6. Be3 Bb4 7. f3 O-O 8. Be2 d5 9. Nxc6 bxc6 10. e5 Nd7 11. f4 c5 12. Bd2 d4 13. Nb5 Bxd2+ 14. Qxd2 f6 15. Bc4 fxe5 16. Bxe6+ Kh8 17. fxe5 Qh4+ 18. g3 Qe4+ 19. Qe2 Qxh1+ 0-1